fUSD/lending_fUSD_20241222
["ID","MTS","AMOUNT","RATE_DAILY","PERIOD"]
[346264603,1734850235097,-1009.27,0.00019178,2]
[346264604,1734850235106,-2163.21,0.00019178,2]
[346264605,1734850235115,-553.47,0.00019178,2]
[346264606,1734850235124,-500.0,0.00019178,2]
[346264607,1734850235133,-500.0,0.00019178,2]
[346264608,1734850235142,-1330.65,0.00019178,2]
[346264609,1734850235151,-3080.95,0.00019178,2]
[346264610,1734850235161,-1394.02,0.00019178,2]
[346264611,1734850235171,-1755.48,0.00019178,2]
[346264612,1734850235179,-507.23167734,0.00019178,2]
[346264613,1734850235192,-2248.84,0.00019178,2]
[346264614,1734850235201,-500.0,0.00019178,2]
[346264615,1734850235211,-1530.51,0.00019178,2]
[346264616,1734850235220,-691.25,0.00019178,2]
[346264617,1734850235231,-527.43,0.00019178,2]
[346264618,1734850235241,-983.95,0.00019178,2]
[346264619,1734850235251,-909.02,0.00019178,2]
[346264620,1734850235261,-3680.39,0.00019178,2]
[346264621,1734850235270,-500.0,0.00019178,2]
[346264622,1734850235279,-796.45,0.00019178,2]
[346264623,1734850235289,-7509.23,0.00019178,2]
[346264624,1734850235300,-1082.43,0.00019178,2]
[346264625,1734850235311,-500.0,0.00019178,2]
[346264626,1734850235320,-591.17,0.00019178,2]
[346264627,1734850235331,-500.0,0.00019178,2]
[346264628,1734850235341,-1118.26,0.00019178,2]
[346264629,1734850235350,-9250.96,0.00019178,2]
[346264630,1734850235359,-10731.94,0.00019178,2]
[346264631,1734850235371,-677.59,0.00019178,2]
[346264632,1734850235379,-2143.35,0.00019178,2]
[346264633,1734850235388,-4833.2,0.00019178,2]
[346264634,1734850235397,-500.0,0.00019178,2]
[346264635,1734850235406,-500.0,0.00019178,2]
[346264636,1734850235416,-500.0,0.00019178,2]
[346264637,1734850235425,-921.7,0.00019178,2]
[346264638,1734850235435,-3680.04,0.00019178,2]
[346264639,1734850235447,-500.0,0.00019178,2]
[346264640,1734850235455,-500.0,0.00019178,2]
[346264641,1734850235464,-3108.46,0.00019178,2]
[346264642,1734850235473,-500.0,0.00019178,2]
[346264643,1734850235483,-553.31,0.00019178,2]
[346264644,1734850235492,-4080.83,0.00019178,2]
[346264645,1734850235502,-4256.74,0.00019178,2]
[346264646,1734850235513,-500.0,0.00019178,2]
[346264647,1734850235523,-548.69,0.00019178,2]
[346264648,1734850235533,-500.0,0.00019178,2]
[346264649,1734850235543,-500.0,0.00019178,2]
[346264650,1734850235552,-591.99,0.00019178,2]
[346264651,1734850235562,-511.56,0.00019178,2]
[346264652,1734850235571,-500.0,0.00019178,2]
[346264653,1734850235580,-1919.16,0.00019178,2]
[346264654,1734850235589,-1743.82,0.00019178,2]
[346264655,1734850235599,-867.09,0.00019178,2]
[346264656,1734850235609,-879.33,0.00019178,2]
[346264657,1734850235618,-1456.25,0.00019178,2]
[346264658,1734850235628,-500.0,0.00019178,2]
[346264659,1734850235639,-1089.73,0.00019178,2]
[346264660,1734850235648,-500.0,0.00019178,2]
[346264661,1734850235658,-2585.88,0.00019178,2]
[346264662,1734850235669,-155.31,0.00019198,2]
[346264663,1734850235679,-565.0,0.00019275,2]
[346264664,1734850235688,-1412.654,0.00019275,2]
[346264665,1734850235698,-509.991,0.00019275,2]
[346264666,1734850235707,-3886.0,0.00019275,2]
[346264667,1734850235717,-150.0,0.00019275,2]
[346264668,1734850235726,-195.285,0.00019349,2]
[346264669,1734850235735,-500.0,0.00019451,2]
[346264670,1734850235745,-500.0,0.00019451,2]
[346264671,1734850235754,-500.0,0.00019451,2]
[346264672,1734850235764,-2503.7,0.00019451,2]
[346264673,1734850235773,-1084.59,0.00019451,2]
[346264674,1734850235782,-795.43,0.00019451,2]
[346264675,1734850235791,-733.06,0.00019451,2]
[346264676,1734850235801,-500.94,0.00019451,2]
[346264677,1734850235810,-500.0,0.00019451,2]
[346264678,1734850235819,-660.44,0.00019451,2]
[346264679,1734850235829,-1817.62,0.00019451,2]
[346264680,1734850235839,-1258.73,0.00019451,2]
[346264681,1734850235849,-692.11,0.00019451,2]
[346264682,1734850235859,-1045.06,0.00019451,2]
[346264683,1734850235868,-13246.94,0.00019451,2]
[346264684,1734850235878,-1095.81,0.00019451,2]
[346264685,1734850235887,-754.43,0.00019451,2]
[346264686,1734850235897,-500.0,0.00019451,2]
[346264687,1734850235907,-774.23,0.00019451,2]
[346264688,1734850235916,-5749.9229164,0.00019451,2]
[346264689,1734850235938,-1164.44999995,0.00019451,2]
[346264690,1734850235967,-1396.50221221,0.00019451,2]
[346264693,1734850237449,-249.03,0.00018882,2]
[346264695,1734850237459,-250.97,0.00019178,2]
[346264696,1734850237559,-1555.56,0.00019178,2]
[346264697,1734850237569,-7508.70487144,0.00019451,2]
[346264698,1734850237578,-1315.52,0.00019451,2]
[346264699,1734850237587,-782.55,0.00019451,2]
[346264700,1734850237596,-583.96,0.00019451,2]
[346264701,1734850237606,-5433.9,0.00019451,2]
[346264702,1734850237615,-1752.73,0.00019451,2]
[346264703,1734850237625,-510.24336896,0.00019452,2]
[346264704,1734850237634,-500.0,0.00019452,2]
[346264705,1734850237647,-500.0,0.00019452,2]
[346264706,1734850237656,-510.93240403,0.00019452,2]
[346264707,1734850237667,-500.0,0.00019452,2]
[346264708,1734850237676,-500.0,0.00019452,2]
[346264709,1734850237686,-500.0,0.00019452,2]
[346264710,1734850237695,-590.76,0.00019452,2]
[346264711,1734850237703,-500.0,0.00019452,2]
[346264712,1734850237713,-581.43,0.00019452,2]
[346264713,1734850237722,-505.45516114,0.00019452,2]
[346264714,1734850237731,-500.0,0.00019452,2]
[346264715,1734850237740,-500.0,0.00019452,2]
[346264716,1734850237749,-500.0,0.00019452,2]
[346264717,1734850237759,-500.0,0.00019452,2]
[346264718,1734850237768,-500.0,0.00019452,2]
[346264719,1734850237778,-500.0,0.00019452,2]
[346264720,1734850237787,-500.0,0.00019452,2]
[346264721,1734850237796,-500.0,0.00019452,2]
[346264722,1734850237805,-500.0,0.00019452,2]
[346264723,1734850237815,-500.0,0.00019452,2]
[346264724,1734850237824,-500.0,0.00019452,2]
[346264725,1734850237833,-602.64170731,0.00019452,2]
[346264726,1734850237842,-396.95686271,0.00019452,2]
[346264727,1734850237851,-500.0,0.00019452,2]
[346264728,1734850237860,-500.0,0.00019452,2]
[346264729,1734850237869,-500.0,0.00019452,2]
[346264730,1734850237878,-552.29,0.00019452,2]
[346264731,1734850237889,-500.0,0.00019452,2]
[346264732,1734850237900,-878.96,0.00019452,2]
[346264733,1734850237910,-500.0,0.00019452,2]
[346264734,1734850237919,-840.44,0.00019452,2]
[346264736,1734850237928,-500.0,0.00019452,2]
[346264738,1734850237938,-500.0,0.00019452,2]
[346264740,1734850237947,-500.0,0.00019452,2]
[346264742,1734850237956,-500.0,0.00019452,2]
[346264744,1734850237965,-500.0,0.00019452,2]
[346264746,1734850237975,-578.0447294,0.00019452,2]
[346264748,1734850237984,-500.0,0.00019452,2]
[346264750,1734850237993,-500.0,0.00019452,2]
[346264752,1734850238002,-500.0,0.00019452,2]
[346264753,1734850238011,-500.0,0.00019452,2]
[346264754,1734850238020,-500.0,0.00019452,2]
[346264755,1734850238030,-500.0,0.00019452,2]
[346264756,1734850238039,-500.0,0.00019452,2]
[346264757,1734850238048,-500.0,0.00019452,2]
[346264758,1734850238057,-296.82981952,0.00019452,2]
[346264759,1734850238066,-500.0,0.00019452,2]
[346264760,1734850238075,-500.0,0.00019452,2]
[346264761,1734850238085,-500.0,0.00019452,2]
[346264762,1734850238094,-500.0,0.00019452,2]
[346264763,1734850238103,-500.0,0.00019452,2]
[346264764,1734850238113,-500.0,0.00019452,2]
[346264765,1734850238122,-500.0,0.00019452,2]
[346264766,1734850238132,-500.0,0.00019452,2]
[346264767,1734850238141,-586.84,0.00019452,2]
[346264768,1734850238150,-500.0,0.00019452,2]
[346264769,1734850238160,-500.0,0.00019452,2]
[346264770,1734850238169,-500.0,0.00019452,2]
[346264771,1734850238179,-500.0,0.00019452,2]
[346264772,1734850238188,-500.0,0.00019452,2]
[346264773,1734850238197,-500.0,0.00019452,2]
[346264774,1734850238206,-500.0,0.00019452,2]
[346264776,1734850238215,-923.20078,0.00019452,2]
[346264778,1734850238225,-500.0,0.00019452,2]
[346264780,1734850238234,-500.0,0.00019452,2]
[346264782,1734850238243,-500.0,0.00019452,2]
[346264784,1734850238252,-500.0,0.00019452,2]
[346264786,1734850238261,-500.0,0.00019452,2]
[346264787,1734850238270,-1345.3,0.00019452,2]
[346264789,1734850238279,-500.0,0.00019452,2]
[346264791,1734850238288,-500.0,0.00019452,2]
[346264792,1734850238297,-500.0,0.00019452,2]
[346264793,1734850238306,-500.0,0.00019452,2]
[346264794,1734850238316,-607.06,0.00019452,2]
[346264795,1734850238324,-1200.485875,0.00019452,2]
[346264796,1734850238334,-500.0,0.00019452,2]
[346264797,1734850238343,-590.63588738,0.00019452,2]
[346264798,1734850238352,-299.49824026,0.00019452,2]
[346264799,1734850238362,-500.0,0.00019452,2]
[346264800,1734850238371,-500.0,0.00019452,2]
[346264801,1734850238507,-500.0,0.00019452,2]
[346264802,1734850238547,-219.95389636,0.00019452,2]
[346264803,1734850238556,-500.0,0.00019452,2]
[346264804,1734850238566,-556.02110157,0.00019452,2]
[346264805,1734850238575,-500.0,0.00019452,2]
[346264806,1734850238584,-909.34,0.00019452,2]
[346264807,1734850238593,-634.95108189,0.00019452,2]
[346264808,1734850238602,-500.0,0.00019452,2]
[346264809,1734850238611,-500.0,0.00019452,2]
[346264810,1734850238621,-500.0,0.00019452,2]
[346264811,1734850238630,-500.0,0.00019452,2]
[346264812,1734850238639,-500.0,0.00019452,2]
[346264813,1734850238649,-500.0,0.00019452,2]
[346264814,1734850238658,-500.0,0.00019452,2]
[346264815,1734850238670,-718.98,0.00019452,2]
[346264816,1734850238680,-500.0,0.00019452,2]
[346264817,1734850238689,-1231.57,0.00019452,2]
[346264818,1734850238699,-500.0,0.00019452,2]
[346264819,1734850238708,-500.0,0.00019452,2]
[346264820,1734850238717,-500.0,0.00019452,2]
[346264821,1734850238726,-619.96190569,0.00019452,2]
[346264822,1734850238736,-1584.75,0.00019452,2]
[346264823,1734850238746,-500.0,0.00019452,2]
[346264824,1734850238756,-796.99,0.00019452,2]
[346264825,1734850238765,-500.0,0.00019452,2]
[346264826,1734850238775,-500.0,0.00019452,2]
[346264827,1734850238783,-500.0,0.00019452,2]
[346264828,1734850238793,-500.0,0.00019452,2]
[346264829,1734850238802,-523.43,0.00019452,2]
[346264830,1734850238811,-500.0,0.00019452,2]
[346264831,1734850238820,-500.0,0.00019452,2]
[346264832,1734850238829,-150.15928424,0.00019452,2]
[346264833,1734850238838,-500.0,0.00019452,2]
[346264834,1734850238847,-500.0,0.00019452,2]
[346264835,1734850238857,-500.0,0.00019452,2]
[346264836,1734850238866,-500.0,0.00019452,2]
[346264837,1734850238876,-500.0,0.00019452,2]
[346264838,1734850238885,-500.0,0.00019452,2]
[346264839,1734850238894,-500.0,0.00019452,2]
[346264840,1734850238903,-500.0,0.00019452,2]
[346264841,1734850238912,-500.0,0.00019452,2]
[346264842,1734850238922,-532.61,0.00019452,2]
[346264843,1734850238931,-500.0,0.00019452,2]
[346264844,1734850238940,-500.0,0.00019452,2]
[346264845,1734850238949,-500.0,0.00019452,2]
[346264846,1734850238960,-500.0,0.00019452,2]
[346264847,1734850238970,-500.0,0.00019452,2]
[346264848,1734850238980,-500.0,0.00019452,2]
[346264849,1734850238990,-500.0,0.00019452,2]
[346264850,1734850239000,-500.0,0.00019452,2]
[346264851,1734850239009,-500.0,0.00019452,2]
[346264852,1734850239019,-500.0,0.00019452,2]
[346264853,1734850239028,-500.0,0.00019452,2]
[346264854,1734850239037,-500.5,0.00019452,2]
[346264855,1734850239046,-647.16,0.00019452,2]
[346264856,1734850239055,-500.0,0.00019452,2]
[346264857,1734850239064,-544.5,0.00019452,2]
[346264858,1734850239073,-1000.0,0.00019452,2]
[346264859,1734850239082,-1371.93,0.00019452,2]
[346264860,1734850239092,-500.0,0.00019452,2]
[346264861,1734850239102,-500.0,0.00019452,2]
[346264862,1734850239111,-782.26,0.00019452,2]
[346264863,1734850239121,-500.0,0.00019452,2]
[346264864,1734850239130,-854.97,0.00019452,2]
[346264865,1734850239139,-818.13,0.00019452,2]
[346264866,1734850239150,-500.0,0.00019452,2]
[346264867,1734850239162,-873.15,0.00019452,2]
[346264868,1734850239172,-500.0,0.00019452,2]
[346264869,1734850239182,-578.15,0.00019452,2]
[346264870,1734850239192,-500.0,0.00019452,2]
[346264871,1734850239201,-908.29,0.00019452,2]
[346264872,1734850239210,-500.0,0.00019452,2]
[346264873,1734850239220,-500.0,0.00019452,2]
[346264874,1734850239229,-500.0,0.00019452,2]
[346264876,1734850239239,-500.0,0.00019452,2]
[346264877,1734850239248,-4350.06,0.00019452,2]
[346264878,1734850239257,-500.0,0.00019452,2]
[346264879,1734850239267,-500.0,0.00019452,2]
[346264880,1734850239276,-3809.8,0.00019452,2]
[346264881,1734850239286,-500.0,0.00019452,2]
[346264882,1734850239295,-956.74,0.00019452,2]
[346264883,1734850239305,-500.0,0.00019452,2]
[346264884,1734850239314,-825.0,0.00019452,2]
[346264885,1734850239324,-771.47,0.00019452,2]
[346264886,1734850239333,-568.13,0.00019452,2]
[346264887,1734850239342,-4621.4,0.00019452,2]
[346264888,1734850239351,-1754.6,0.00019452,2]
[346264889,1734850239360,-500.0,0.00019452,2]
[346264890,1734850239370,-596.36,0.00019452,2]
[346264891,1734850239379,-500.0,0.00019452,2]
[346264892,1734850239389,-500.0,0.00019452,2]
[346264893,1734850239398,-500.0,0.00019452,2]
[346264894,1734850239407,-2476.22,0.00019452,2]
[346264895,1734850239418,-500.0,0.00019452,2]
[346264896,1734850239428,-500.0,0.00019452,2]
[346264897,1734850239437,-562.12,0.00019452,2]
[346264898,1734850239451,-923.51,0.00019452,2]
[346264899,1734850239461,-500.0,0.00019452,2]
[346264900,1734850239470,-500.0,0.00019452,2]
[346264901,1734850239479,-500.0,0.00019452,2]
[346264902,1734850239490,-1377.92,0.00019452,2]
[346264903,1734850239500,-500.0,0.00019452,2]
[346264904,1734850239509,-500.0,0.00019452,2]
[346264905,1734850239521,-951.29,0.00019452,2]
[346264906,1734850239531,-549.62,0.00019452,2]
[346264907,1734850239540,-1800.53,0.00019452,2]
[346264908,1734850239550,-500.0,0.00019452,2]
[346264909,1734850239559,-598.53,0.00019452,2]
[346264910,1734850239568,-3333.26,0.00019452,2]
[346264911,1734850239578,-851.81,0.00019452,2]
[346264912,1734850239587,-706.82,0.00019452,2]
[346264913,1734850239597,-500.0,0.00019452,2]
[346264914,1734850239607,-717.18,0.00019452,2]
[346264915,1734850239616,-742.14,0.00019452,2]
[346264916,1734850239625,-500.0,0.00019452,2]
[346264917,1734850239635,-699.75,0.00019452,2]
[346264918,1734850239644,-1007.16,0.00019452,2]
[346264919,1734850239653,-500.0,0.00019452,2]
[346264920,1734850239664,-6041.04,0.00019452,2]
[346264921,1734850239673,-1009.27,0.00019452,2]
[346264922,1734850239682,-2163.21,0.00019452,2]
[346264923,1734850239691,-553.47,0.00019452,2]
[346264924,1734850239700,-500.0,0.00019452,2]
[346264925,1734850239709,-496.87762764,0.00019452,2]
[346264926,1734850239719,-1330.65,0.00019452,2]
[346264927,1734850239728,-3080.95,0.00019452,2]
[346264928,1734850239737,-1394.02,0.00019452,2]
[346264929,1734850239746,-1755.48,0.00019452,2]
[346264930,1734850239755,-2248.84,0.00019452,2]
[346264931,1734850239764,-500.0,0.00019452,2]
[346264932,1734850239773,-1530.51,0.00019452,2]
[346264933,1734850239783,-691.25,0.00019452,2]
[346264934,1734850239792,-527.43,0.00019452,2]
[346264935,1734850239801,-983.95,0.00019452,2]
[346264936,1734850239810,-909.02,0.00019452,2]
[346264937,1734850239819,-3680.39,0.00019452,2]
[346264938,1734850239829,-500.0,0.00019452,2]
[346264939,1734850239838,-796.45,0.00019452,2]
[346264940,1734850239848,-7509.23,0.00019452,2]
[346264941,1734850239857,-1082.43,0.00019452,2]
[346264942,1734850239866,-500.0,0.00019452,2]
[346264943,1734850239875,-591.17,0.00019452,2]
[346264944,1734850239885,-500.0,0.00019452,2]
[346264945,1734850239894,-1118.26,0.00019452,2]
[346264946,1734850239903,-9250.96,0.00019452,2]
[346264947,1734850239912,-677.59,0.00019452,2]
[346264948,1734850239921,-10731.94,0.00019452,2]
[346264949,1734850239931,-2143.35,0.00019452,2]
[346264950,1734850239941,-4833.2,0.00019452,2]
[346264951,1734850239950,-500.0,0.00019452,2]
[346264952,1734850239960,-921.7,0.00019452,2]
[346264953,1734850239969,-3680.04,0.00019452,2]
[346264954,1734850239978,-218.78192267,0.00019452,2]
[346264955,1734850239987,-500.0,0.00019452,2]
[346264956,1734850239997,-3108.46,0.00019452,2]
[346264957,1734850240007,-500.0,0.00019452,2]
[346264958,1734850240016,-553.31,0.00019452,2]
[346264959,1734850240025,-4080.83,0.00019452,2]
[346264960,1734850240034,-4256.74,0.00019452,2]
[346264961,1734850240043,-500.0,0.00019452,2]
[346264962,1734850240052,-548.69,0.00019452,2]
[346264963,1734850240061,-500.0,0.00019452,2]
[346264964,1734850240070,-500.0,0.00019452,2]
[346264965,1734850240079,-591.99,0.00019452,2]
[346264967,1734850240088,-511.56,0.00019452,2]
[346264968,1734850240097,-500.0,0.00019452,2]
[346264969,1734850240106,-1919.16,0.00019452,2]
[346264970,1734850240116,-1743.82,0.00019452,2]
[346264971,1734850240127,-867.09,0.00019452,2]
[346264972,1734850240137,-879.33,0.00019452,2]
[346264973,1734850240146,-1456.25,0.00019452,2]
[346264974,1734850240155,-500.0,0.00019452,2]
[346264975,1734850240164,-1089.73,0.00019452,2]
[346264976,1734850240174,-500.0,0.00019452,2]
[346264977,1734850240183,-2585.88,0.00019452,2]
[346264978,1734850240192,-1806.53,0.00019452,2]
[346264979,1734850240204,-1479.39286,0.000196,2]
[346264980,1734850240213,-214.21565971,0.00019626,2]
[346264981,1734850240224,-153.0,0.00019656,2]
[346264982,1734850240234,-153.0,0.00019656,2]
[346264983,1734850240244,-500.0,0.00019725,2]
[346264984,1734850240253,-2503.7,0.00019725,2]
[346264985,1734850240262,-1084.59,0.00019725,2]
[346264986,1734850240272,-795.43,0.00019725,2]
[346264987,1734850240283,-733.06,0.00019725,2]
[346264988,1734850240293,-500.94,0.00019725,2]
[346264989,1734850240303,-500.0,0.00019725,2]
[346264990,1734850240313,-660.44,0.00019725,2]
[346264991,1734850240323,-1817.62,0.00019725,2]
[346264992,1734850240334,-1258.73,0.00019725,2]
[346264993,1734850240344,-692.11,0.00019725,2]
[346264994,1734850240353,-1045.06,0.00019725,2]
[346264995,1734850240362,-13246.94,0.00019725,2]
[346264996,1734850240371,-1095.81,0.00019725,2]
[346264997,1734850240380,-754.43,0.00019725,2]
[346264998,1734850240389,-500.0,0.00019725,2]
[346264999,1734850240399,-774.23,0.00019725,2]
[346265000,1734850240408,-15819.58,0.00019725,2]
[346265001,1734850240419,-1315.52,0.00019725,2]
[346265002,1734850240429,-782.55,0.00019725,2]
[346265003,1734850240442,-583.96,0.00019725,2]
[346265004,1734850240452,-5433.9,0.00019725,2]
[346265005,1734850240462,-1752.73,0.00019725,2]
[346265006,1734850240471,-500.0,0.00019726,2]
[346265007,1734850240481,-500.0,0.00019726,2]
[346265008,1734850240492,-500.0,0.00019726,2]
[346265009,1734850240501,-500.0,0.00019726,2]
[346265010,1734850240511,-590.76,0.00019726,2]
[346265011,1734850240521,-500.0,0.00019726,2]
[346265012,1734850240531,-500.0,0.00019726,2]
[346265013,1734850240541,-500.0,0.00019726,2]
[346265014,1734850240551,-500.0,0.00019726,2]
[346265015,1734850240560,-508.47037084,0.00019726,2]
[346265016,1734850240572,-500.0,0.00019726,2]
[346265017,1734850240581,-500.0,0.00019726,2]
[346265018,1734850240591,-500.0,0.00019726,2]
[346265019,1734850240601,-500.0,0.00019726,2]
[346265020,1734850240611,-500.0,0.00019726,2]
[346265021,1734850240620,-500.0,0.00019726,2]
[346265022,1734850240630,-500.0,0.00019726,2]
[346265023,1734850240641,-500.0,0.00019726,2]
[346265024,1734850240650,-500.0,0.00019726,2]
[346265025,1734850240659,-500.0,0.00019726,2]
[346265026,1734850240670,-552.29,0.00019726,2]
[346265027,1734850240680,-500.0,0.00019726,2]
[346265028,1734850240690,-878.96,0.00019726,2]
[346265029,1734850240699,-500.0,0.00019726,2]
[346265030,1734850240708,-840.44,0.00019726,2]
[346265031,1734850240717,-500.0,0.00019726,2]
[346265032,1734850240727,-500.0,0.00019726,2]
[346265033,1734850240736,-500.0,0.00019726,2]
[346265034,1734850240746,-500.0,0.00019726,2]
[346265035,1734850240755,-500.0,0.00019726,2]
[346265036,1734850240765,-500.0,0.00019726,2]
[346265037,1734850240774,-500.0,0.00019726,2]
[346265038,1734850240784,-500.0,0.00019726,2]
[346265039,1734850240795,-500.0,0.00019726,2]
[346265040,1734850240804,-500.0,0.00019726,2]
[346265041,1734850240813,-500.0,0.00019726,2]
[346265042,1734850240823,-281.42826828,0.00019726,2]
[346265043,1734850240834,-500.0,0.00019726,2]
[346265044,1734850240843,-500.0,0.00019726,2]
[346265045,1734850240853,-500.0,0.00019726,2]
[346265046,1734850240862,-500.0,0.00019726,2]
[346265047,1734850240872,-500.0,0.00019726,2]
[346265048,1734850240883,-500.0,0.00019726,2]
[346265049,1734850240893,-500.0,0.00019726,2]
[346265050,1734850240904,-500.0,0.00019726,2]
[346265051,1734850240915,-586.84,0.00019726,2]
[346265052,1734850240962,-500.0,0.00019726,2]
[346265053,1734850240972,-321.06288382,0.00019726,2]
[346265054,1734850240982,-500.0,0.00019726,2]
[346265055,1734850240992,-500.0,0.00019726,2]
[346265056,1734850241002,-500.0,0.00019726,2]
[346265057,1734850241012,-500.0,0.00019726,2]
[346265058,1734850241022,-500.0,0.00019726,2]
[346265059,1734850241033,-923.20078,0.00019726,2]
[346265060,1734850241042,-500.0,0.00019726,2]
[346265061,1734850241052,-500.0,0.00019726,2]
[346265062,1734850241063,-500.0,0.00019726,2]
[346265063,1734850241072,-178.99844776,0.00019726,2]
[346265064,1734850241080,-500.0,0.00019726,2]
[346265065,1734850241089,-1345.3,0.00019726,2]
[346265066,1734850241098,-500.0,0.00019726,2]
[346265067,1734850241107,-500.0,0.00019726,2]
[346265068,1734850241116,-500.0,0.00019726,2]
[346265069,1734850241126,-500.0,0.00019726,2]
[346265070,1734850241135,-607.06,0.00019726,2]
[346265071,1734850241144,-1200.485875,0.00019726,2]
[346265072,1734850241154,-500.0,0.00019726,2]
[346265073,1734850241164,-500.0,0.00019726,2]
[346265074,1734850241173,-500.0,0.00019726,2]
[346265075,1734850241183,-500.0,0.00019726,2]
[346265076,1734850241193,-500.0,0.00019726,2]
[346265077,1734850241203,-500.0,0.00019726,2]
[346265078,1734850241214,-909.34,0.00019726,2]
[346265079,1734850241224,-500.0,0.00019726,2]
[346265080,1734850241234,-500.0,0.00019726,2]
[346265081,1734850241243,-500.0,0.00019726,2]
[346265082,1734850241253,-500.0,0.00019726,2]
[346265083,1734850241263,-500.0,0.00019726,2]
[346265084,1734850241273,-500.0,0.00019726,2]
[346265085,1734850241282,-500.0,0.00019726,2]
[346265086,1734850241291,-718.98,0.00019726,2]
[346265087,1734850241299,-500.0,0.00019726,2]
[346265088,1734850241308,-1231.57,0.00019726,2]
[346265089,1734850241317,-500.0,0.00019726,2]
[346265090,1734850241326,-500.0,0.00019726,2]
[346265091,1734850241335,-500.0,0.00019726,2]
[346265092,1734850241344,-1584.75,0.00019726,2]
[346265093,1734850241353,-500.0,0.00019726,2]
[346265094,1734850241363,-796.99,0.00019726,2]
[346265095,1734850241373,-500.0,0.00019726,2]
[346265096,1734850241383,-500.0,0.00019726,2]
[346265097,1734850241393,-500.0,0.00019726,2]
[346265098,1734850241402,-500.0,0.00019726,2]
[346265099,1734850241411,-523.43,0.00019726,2]
[346265100,1734850241421,-500.0,0.00019726,2]
[346265101,1734850241430,-500.0,0.00019726,2]
[346265102,1734850241441,-500.0,0.00019726,2]
[346265103,1734850241452,-500.0,0.00019726,2]
[346265104,1734850241461,-500.0,0.00019726,2]
[346265105,1734850241471,-500.0,0.00019726,2]
[346265106,1734850241480,-500.0,0.00019726,2]
[346265107,1734850241491,-500.0,0.00019726,2]
[346265108,1734850241500,-500.0,0.00019726,2]
[346265109,1734850241509,-500.0,0.00019726,2]
[346265110,1734850241520,-500.0,0.00019726,2]
[346265111,1734850241529,-532.61,0.00019726,2]
[346265112,1734850241538,-612.17262207,0.00019726,2]
[346265113,1734850241547,-500.0,0.00019726,2]
[346265114,1734850241556,-500.0,0.00019726,2]
[346265115,1734850241565,-500.0,0.00019726,2]
[346265116,1734850241574,-500.0,0.00019726,2]
[346265117,1734850241585,-500.0,0.00019726,2]
[346265118,1734850241594,-500.0,0.00019726,2]
[346265119,1734850241603,-558.51139956,0.00019726,2]
[346265120,1734850241613,-500.0,0.00019726,2]
[346265121,1734850241624,-500.0,0.00019726,2]
[346265122,1734850241634,-500.5,0.00019726,2]
[346265123,1734850241645,-647.16,0.00019726,2]
[346265124,1734850241656,-500.0,0.00019726,2]